bitfinex-derivatives/quotes_SOLF0:USTF0_20250808
["timestamp","ask_amount","ask_price","bid_price","bid_amount"]
[1754613057768,4.84284537,174.13,174.06,3.17]
[1754613057964,4.84284537,174.15,174.06,3.17]
[1754613058568,5.7413,174.13,174.09,5.7423]
[1754613058767,293.48302056,174.22,174.0,4.84284537]
[1754613058768,4.84284537,174.17,174.1,3.17]
[1754613058967,4.84284537,174.19,174.1,3.17]
[1754613059169,4.84284537,174.19,174.12,3.17]
[1754613059668,5.7404,174.15,174.09,4.84284537]
[1754613059870,5.7404,174.15,174.14,3.17]
[1754613060169,5.7401,174.16,174.13,3.17]
[1754613060363,5.12284537,174.28,174.16,3.17]
[1754613060568,0.28,174.28,174.2,3.17]
[1754613060763,4.84284537,174.28,174.1,4.84284537]
[1754613061069,4.84284537,174.28,174.19,3.17]
[1754613061464,0.28,174.29,174.2,4.84284537]
[1754613061660,5.7373,174.25,174.21,3.33]
[1754613061961,4.84284537,174.3,174.21,3.33]
[1754613062159,0.28,174.32,174.23,3.33]
[1754613062364,4.84284537,174.28,174.23,3.33]
[1754613062569,4.84284537,174.24,174.16,3.33]
[1754613062971,4.84284537,174.22,174.18,3.33]
[1754613063170,4.84284537,174.22,174.19,3.33]
[1754613063365,4.84284537,174.22,174.2,3.33]
[1754613063574,3.05,174.21,174.11,4.84284537]
[1754613063769,4.84284537,174.2,174.1,112.42]
[1754613064075,4.84284537,174.24,174.13,4.84284537]
[1754613064371,4.84284537,174.24,174.15,4.84284537]
[1754613064572,3.05,174.23,174.13,4.84284537]
[1754613065174,5.7387,174.21,174.16,5.7398]
[1754613065372,4.84284537,174.22,174.16,5.7398]
[1754613065570,4.84284537,174.2,174.11,4.84284537]
[1754613065868,4.84284537,174.18,174.12,5.7413]
[1754613066075,4.84284537,174.15,174.08,385.84]
[1754613066463,4.84284537,174.13,174.03,4.84284537]
[1754613066663,4.84284537,174.11,174.01,4.84284537]
[1754613066875,4.84284537,174.09,173.99,117.24284537]
[1754613067074,4.84284537,174.07,173.97,390.56284537]
[1754613067575,5.7431,174.07,173.99,4.84284537]
[1754613067975,4.84284537,174.09,173.99,4.84284537]
[1754613068475,4.84284537,174.09,173.97,385.72]
[1754613068775,5.7433,174.07,174.02,5.7447]
[1754613068977,5.7433,174.07,173.97,393.80976887]
[1754613069278,5.7428,174.08,173.97,393.80976887]
[1754613069478,8.08976887,174.1,174.0,8.08976887]
[1754613069873,8.08976887,174.1,173.97,8.08976887]
[1754613070377,5.7427,174.08,173.97,8.08976887]
[1754613070673,3.05,174.06,173.98,3.33]
[1754613070978,3.05,174.06,173.95,112.4]
[1754613070979,5.7444,174.03,173.99,3.33]
[1754613071174,3.05,174.05,174.0,3.33]
[1754613071375,3.05,174.04,174.01,3.33]
[1754613071773,3.05,174.08,174.02,3.33]
[1754613072470,3.05,174.08,174.03,5.7443]
[1754613072775,3.05,174.09,173.98,3.33]
[1754613073277,8.08976887,174.1,173.98,3.33]
[1754613073471,8.08976887,174.1,174.05,5.7434]
[1754613073677,3.05,174.09,174.01,3.33]
[1754613074176,8.7937,174.05,174.02,3.33]
[1754613074379,3.05,174.05,174.02,3.33]
[1754613074574,3.05,174.04,173.96,8.08976887]
[1754613074774,8.7941,174.04,174.01,3.33]
[1754613075080,11.13976887,174.1,173.97,3.33]
[1754613075285,3.05,174.05,174.01,3.33]
[1754613075575,3.05,174.03,173.92,3.33]
[1754613075874,8.08976887,174.01,173.95,3.33]
[1754613076176,3.05,174.0,173.92,3.33]
[1754613076379,3.05,174.0,173.96,3.33]
[1754613076778,3.05,173.99,173.96,3.33]
[1754613076979,8.7959,173.99,173.96,3.33]
[1754613077183,8.08976887,174.01,173.92,3.33]
[1754613077380,3.05,174.02,173.92,3.33]
[1754613077876,8.7948,174.02,173.96,5.7464]
[1754613078077,3.05,174.02,173.92,3.33]
[1754613078982,5.7453,174.01,173.92,3.33]
[1754613079378,8.08976887,174.01,173.92,3.33]
[1754613079578,3.05,173.97,173.92,3.33]
[1754613079781,3.05,173.94,173.89,3.33]
[1754613079986,3.05,173.94,173.86,3.33]
[1754613080686,3.05,173.94,173.91,3.33]
[1754613080880,3.05,173.94,173.9,3.33]
[1754613081076,5.7467,173.96,173.91,5.748]
[1754613081282,3.05,173.97,173.94,3.33]
[1754613081490,3.05,173.97,173.95,3.33]
[1754613081688,3.05,174.0,173.96,3.33]
[1754613081889,8.08976887,174.01,173.9,8.08976887]
[1754613082077,11.13976887,174.01,173.91,3.33]
[1754613082378,3.05,174.0,173.96,3.33]
[1754613082584,3.05,173.99,173.96,3.33]
[1754613082785,3.05,173.95,173.91,3.33]
[1754613083085,3.05,173.97,173.88,3.33]
[1754613083284,3.05,173.97,173.9,3.33]
[1754613083586,3.05,173.99,173.91,3.33]
[1754613083790,3.05,173.99,173.92,3.33]
[1754613084293,8.796,173.98,173.95,3.33]
[1754613084581,3.05,173.98,173.96,3.33]
[1754613084779,3.05,174.0,173.97,3.33]
[1754613084980,3.05,174.0,173.92,3.33]
[1754613085987,8.08976887,174.01,173.92,3.33]
[1754613086188,11.13976887,174.01,173.92,3.33]
[1754613086390,16.88496887,174.01,173.97,5.7462]
[1754613086584,8.08976887,174.04,173.92,3.33]
[1754613086789,11.13976887,174.04,173.92,3.33]
[1754613087091,5.7447,174.02,173.92,3.33]
[1754613087289,11.13976887,174.04,173.92,3.33]
[1754613087789,3.05,174.04,173.95,3.33]
[1754613088084,8.08976887,174.07,173.95,3.33]
[1754613088289,112.4,174.12,173.95,3.33]
[1754613088290,3.05,174.03,173.95,3.33]
[1754613088890,3.05,174.0,173.92,3.33]
[1754613089287,3.05,174.01,173.92,3.33]
[1754613089691,3.05,173.99,173.92,3.33]
[1754613089888,8.08976887,173.97,173.92,3.33]
[1754613090087,3.05,173.95,173.92,3.33]
[1754613090587,8.08976887,173.97,173.93,3.33]
[1754613090789,3.05,173.95,173.87,4.84610529]
[1754613090991,33.57030529,174.1,173.86,112.42]
[1754613090992,4.84610529,173.92,173.88,3.33]
[1754613091293,13.64410529,173.92,173.88,3.33]
[1754613091484,13.64410529,173.92,173.86,112.42]
[1754613091686,4.84610529,173.94,173.9,3.06]
[1754613091886,4.84610529,173.96,173.87,3.06]
[1754613092187,4.84610529,173.94,173.87,3.06]
[1754613092388,3.34,173.93,173.87,3.06]
[1754613092583,3.34,173.93,173.9,3.06]
[1754613092783,4.84610529,173.94,173.91,3.06]
[1754613092978,4.84610529,173.96,173.87,7.90610529]
[1754613093189,4.84610529,173.96,173.93,3.06]
[1754613093485,5.7463,173.97,173.93,3.06]
[1754613093687,5.7463,173.97,173.93,5.7475]
[1754613093890,3.34,173.99,173.95,3.06]
[1754613094085,4.84610529,174.0,173.95,3.06]
[1754613094480,3.34,173.98,173.95,3.06]
[1754613094688,4.84610529,174.0,173.96,3.06]
[1754613095187,3.34,173.99,173.91,5.7482]
[1754613095395,4.84610529,173.96,173.9,3.06]
[1754613095685,13.93280529,173.96,173.92,5.7477]
[1754613095886,3.34,174.0,173.9,3.06]
[1754613096194,3.34,174.05,173.97,4.84610529]
[1754613096392,3.34,174.05,173.98,3.06]
[1754613097092,3.34,174.04,173.98,3.06]
[1754613098088,5.7456,174.0,173.98,3.06]
[1754613098391,3.34,174.01,173.96,3.06]
[1754613098691,8.18610529,174.05,173.94,3.06]
[1754613098893,8.18610529,174.05,173.95,4.84610529]
[1754613099191,8.18610529,174.05,173.96,3.06]
[1754613099396,4.84610529,174.05,173.96,3.06]
[1754613099595,3.34,174.02,173.96,3.06]
[1754613099893,5.746,173.98,173.95,3.06]
[1754613100093,8.18610529,173.99,173.96,3.06]
[1754613100788,8.18610529,174.01,173.92,3.06]
[1754613101496,8.18610529,174.03,173.94,3.06]
[1754613101790,4.84610529,174.05,173.96,3.06]
[1754613101989,4.84610529,174.03,173.96,3.06]
[1754613102189,4.84610529,174.01,173.96,3.06]
[1754613102393,4.84610529,174.01,173.91,4.84610529]
[1754613102590,3.34,174.03,173.95,4.84610529]
[1754613102796,3.34,174.03,173.96,3.06]
[1754613103098,8.18610529,174.03,173.96,3.06]
[1754613103294,4.84610529,174.03,173.94,3.06]
[1754613103500,8.18610529,174.05,173.96,3.06]
[1754613103797,3.34,174.05,173.97,4.84610529]
[1754613103997,3.34,174.05,173.98,3.06]
[1754613104396,4.84610529,174.05,173.95,4.84610529]
[1754613104698,4.84610529,174.01,173.96,3.06]
[1754613105001,3.34,174.02,173.99,3.06]
[1754613105703,3.34,174.01,173.94,3.06]
[1754613105902,4.84610529,174.01,173.94,3.06]
[1754613106104,5.7464,173.97,173.95,3.06]
[1754613106400,5.7464,173.97,173.96,3.06]
[1754613106704,3.34,174.0,173.94,3.06]
[1754613106903,3.34,173.98,173.94,3.06]
[1754613107105,3.34,173.97,173.94,3.06]
[1754613107307,3.34,173.98,173.94,3.06]
[1754613107505,3.34,173.96,173.91,3.06]
[1754613107697,8.18610529,173.95,173.91,3.06]
[1754613107902,4.84610529,173.93,173.79,4.84610529]
[1754613108101,8.18610529,173.87,173.81,3.06]
[1754613108607,4.84610529,173.89,173.81,3.06]
[1754613108807,5.7501,173.86,173.82,5.7511]
[1754613109104,4.84610529,173.89,173.83,3.06]
[1754613109299,5.7493,173.88,173.82,5.7511]
[1754613109500,8.18610529,173.91,173.82,3.06]
[1754613109701,5.7493,173.88,173.82,8.811]
[1754613109901,8.18610529,173.89,173.82,3.06]
[1754613110203,5.7495,173.88,173.82,8.8111]
[1754613110399,5.7495,173.88,173.82,3.06]
[1754613110708,4.84610529,173.89,173.82,3.06]
[1754613110897,8.18610529,173.91,173.82,3.06]
[1754613111100,4.84610529,173.91,173.81,4.84610529]
[1754613111302,8.18610529,173.91,173.87,3.06]
[1754613111698,8.18610529,173.91,173.88,3.06]
[1754613111903,9.0883,173.91,173.88,3.06]
[1754613112105,3.34,173.91,173.88,3.06]
[1754613112405,4.84610529,173.89,173.79,3.06]
[1754613112604,3.34,173.86,173.79,3.06]
[1754613112799,3.34,173.86,173.73,62.0]
[1754613112800,3.34,173.84,173.76,3.06]
[1754613113010,3.34,173.82,173.76,3.06]
[1754613113309,3.34,173.82,173.76,8.8131]
[1754613113607,3.34,173.82,173.76,5.7531]
[1754613113910,3.34,173.82,173.74,3.06]
[1754613114105,3.34,173.82,173.73,4.84610529]
[1754613114313,4.84610529,173.83,173.74,3.06]
[1754613114606,11.45301719,173.85,173.74,3.06]
[1754613115004,5.7508,173.84,173.78,5.7523]
[1754613115204,3.34,173.84,173.78,3.06]
[1754613115604,3.34,173.82,173.78,8.8125]
[1754613115813,11.45301719,173.85,173.73,3.06]
[1754613116110,17.20351719,173.85,173.79,5.752]
[1754613116310,11.45301719,173.85,173.79,3.06]
[1754613116510,3.34,173.83,173.72,387.06128037]
[1754613116711,9.0912,173.83,173.77,5.7526]
[1754613117007,9.0912,173.83,173.77,3.06]
[1754613117208,9.0912,173.83,173.78,5.7523]
[1754613117412,9.0912,173.83,173.79,3.06]
[1754613117613,13.86361719,173.85,173.73,3.06]
[1754613117806,8.11301719,173.85,173.79,5.752]
[1754613118006,8.11301719,173.85,173.79,8.812]
[1754613118312,3.34,173.83,173.8,3.06]
[1754613118807,3.34,173.83,173.79,5.752]
[1754613119001,8.11301719,173.85,173.75,8.11301719]
[1754613119205,3.34,173.87,173.76,3.06]
[1754613119914,5.7505,173.85,173.79,5.752]
[1754613120212,11.45301719,173.88,173.76,3.06]
[1754613120407,11.45301719,173.88,173.79,3.06]
[1754613120615,11.45301719,173.91,173.79,3.06]
[1754613120914,11.45301719,173.94,173.82,3.06]
[1754613121118,3.34,173.93,173.82,3.06]
[1754613121609,3.36,173.88,173.82,3.06]
[1754613121808,8.11301719,173.94,173.82,3.06]
[1754613122008,5.7484,173.91,173.86,5.7496]
[1754613122209,8.11301719,173.94,173.88,3.32]
[1754613122416,3.36,173.9,173.87,3.32]
[1754613122608,3.36,173.89,173.87,3.32]
[1754613122808,8.11301719,173.94,173.81,3.32]
[1754613123114,3.36,173.92,173.84,3.32]
[1754613123317,3.36,173.94,173.84,3.32]
[1754613123717,8.11301719,173.97,173.83,8.11301719]
[1754613123915,3.36,173.93,173.84,3.32]
[1754613124115,3.36,173.9,173.81,3.32]
[1754613124323,3.36,173.87,173.81,3.32]
[1754613124918,9.1099,173.86,173.82,3.32]
[1754613125118,11.47301719,173.88,173.78,3.32]
[1754613125317,3.36,173.88,173.78,3.32]
[1754613125517,8.11301719,173.91,173.77,8.11301719]
[1754613125518,3.36,173.9,173.83,3.32]
[1754613125919,5.749,173.89,173.85,5.7502]
[1754613126118,3.36,173.88,173.83,3.32]
[1754613126320,3.36,173.87,173.83,3.32]
[1754613126519,3.36,173.87,173.84,3.32]
[1754613127024,8.11301719,173.92,173.8,3.32]
[1754613127220,3.36,173.9,173.8,3.32]
[1754613127420,5.7498,173.87,173.8,3.32]
[1754613127725,3.36,173.91,173.8,3.32]
[1754613127916,3.36,173.91,173.83,3.32]
[1754613128923,3.36,173.94,173.83,3.32]
[1754613129322,3.36,173.94,173.87,3.32]
[1754613129825,9.1083,173.91,173.87,3.32]
[1754613130120,3.36,173.91,173.82,8.11301719]
[1754613130325,9.1085,173.91,173.87,3.32]
[1754613130624,3.36,173.94,173.83,3.32]
[1754613131025,3.36,173.88,173.81,3.32]
[1754613131418,5.7506,173.84,173.81,3.32]
[1754613131730,3.36,173.85,173.81,3.32]
[1754613131932,3.36,173.85,173.83,3.32]
[1754613132126,3.36,173.88,173.78,3.32]
[1754613132327,3.36,173.91,173.8,8.11301719]
[1754613132529,3.36,173.91,173.85,3.32]
[1754613133031,3.36,173.89,173.86,3.32]
[1754613133328,3.36,173.92,173.81,3.32]
[1754613133529,5.7489,173.89,173.85,5.7502]
[1754613133730,5.7489,173.89,173.87,3.32]
[1754613133928,3.36,173.89,173.87,3.32]
[1754613134131,3.36,173.87,173.82,5.7511]
[1754613134429,3.36,173.88,173.81,3.32]
[1754613134623,5.7502,173.86,173.81,5.7515]
[1754613134830,3.36,173.85,173.83,3.32]
[1754613135028,5.7497,173.87,173.83,5.7508]
[1754613135332,3.36,173.9,173.87,3.32]
[1754613135727,4.85185991,173.92,173.82,4.85185991]
[1754613135932,3.36,173.93,173.89,3.32]
[1754613136132,9.1086,173.91,173.87,3.32]
[1754613136333,3.36,173.9,173.87,3.32]
[1754613136630,3.36,173.91,173.83,3.32]
[1754613136833,4.85185991,173.92,173.83,3.32]
[1754613136834,3.36,173.89,173.83,3.32]
[1754613137133,5.7497,173.87,173.83,5.7508]
[1754613137332,5.7497,173.87,173.85,3.32]
[1754613137534,4.85185991,173.9,173.81,3.32]
[1754613137733,3.36,173.91,173.82,4.85185991]
[1754613138034,3.36,173.91,173.85,3.32]
[1754613138333,9.1085,173.91,173.84,4.85185991]
[1754613138632,3.36,173.91,173.85,3.32]
[1754613138833,4.85185991,173.92,173.85,3.32]
[1754613139033,3.36,173.88,173.85,3.32]
[1754613139334,5.7491,173.89,173.87,3.32]
[1754613139631,4.85185991,173.9,173.82,3.32]
[1754613140023,5.7492,173.89,173.86,3.32]
[1754613140225,3.36,173.91,173.75,62.0]
[1754613140226,3.36,173.91,173.82,3.32]
[1754613140422,5.7499,173.87,173.82,9.0711]
[1754613140625,3.36,173.87,173.82,3.32]
[1754613140835,3.36,173.86,173.77,4.85185991]
[1754613141038,3.36,173.84,173.82,3.32]
[1754613141236,3.36,173.84,173.78,3.32]
[1754613141529,8.21185991,173.88,173.77,4.85185991]
[1754613141730,3.36,173.88,173.8,3.32]
[1754613141936,8.21185991,173.9,173.8,3.32]
[1754613142138,5.7499,173.87,173.82,5.7512]
[1754613142437,3.36,173.89,173.8,3.32]
[1754613142734,3.36,173.89,173.82,3.32]
[1754613143632,9.109,173.89,173.85,5.7502]
[1754613143831,3.36,173.91,173.82,3.32]
[1754613144437,5.7495,173.88,173.84,5.7503]
[1754613144735,3.36,173.91,173.85,3.32]
[1754613144930,5.7492,173.89,173.85,9.0701]
[1754613145237,3.36,173.91,173.85,3.32]
[1754613145737,3.36,173.91,173.84,3.32]
[1754613146233,5.749,173.89,173.85,5.7502]
[1754613146536,5.749,173.89,173.86,3.32]
[1754613146736,5.749,173.89,173.87,3.32]
[1754613147434,4.85185991,173.92,173.85,3.32]
[1754613147635,3.36,173.89,173.82,3.32]
[1754613148039,5.7503,173.85,173.81,5.7514]
[1754613148333,5.7503,173.85,173.84,3.32]
[1754613148542,5.7507,173.84,173.8,5.7519]
[1754613148839,4.85185991,173.88,173.83,3.32]
[1754613148840,3.36,173.87,173.83,3.32]
[1754613149039,5.7505,173.85,173.83,3.32]
[1754613149338,4.85185991,173.88,173.8,3.32]
[1754613149537,3.36,173.87,173.8,3.32]
[1754613149940,4.85185991,173.86,173.8,3.32]
[1754613150137,3.36,173.84,173.78,3.32]
[1754613150330,4.85185991,173.85,173.79,3.32]
[1754613150535,3.36,173.83,173.79,3.32]
[1754613150733,5.7519,173.8,173.79,3.32]
[1754613150939,3.36,173.82,173.76,3.32]
[1754613151136,3.36,173.8,173.72,1.00128037]
[1754613151333,3.36,173.88,173.73,4.85185991]
[1754613151538,3.25,173.86,173.78,3.09]
[1754613151739,5.7511,173.83,173.79,5.7522]
[1754613151935,3.25,173.83,173.77,4.85185991]
[1754613152141,3.25,173.87,173.79,4.85185991]
[1754613152342,5.7503,173.85,173.81,5.7513]
[1754613152638,3.25,173.86,173.83,3.09]
[1754613152940,9.0008,173.84,173.81,3.09]
[1754613153143,3.25,173.84,173.82,3.09]
[1754613153745,3.25,173.83,173.8,3.09]
[1754613153943,4.85185991,173.83,173.74,4.85185991]
[1754613154134,3.25,173.82,173.75,3.09]
[1754613154338,3.25,173.79,173.74,5.7538]
[1754613154544,3.25,173.79,173.76,3.09]
[1754613154844,9.0023,173.79,173.76,3.09]
[1754613155144,3.25,173.79,173.76,3.09]
[1754613155341,4.85185991,173.83,173.74,4.85185991]
[1754613155543,4.85185991,173.83,173.75,3.09]
[1754613155842,3.25,173.82,173.72,1.00128037]
[1754613156041,4.85185991,173.82,173.72,3.09]
[1754613156236,8.10185991,173.82,173.74,3.09]
[1754613156435,3.25,173.8,173.73,4.85185991]
[1754613156640,3.25,173.8,173.74,3.09]
[1754613157144,3.25,173.79,173.74,3.09]
[1754613157447,3.25,173.78,173.74,3.09]
[1754613157748,3.25,173.77,173.74,3.09]
[1754613158139,3.25,173.8,173.76,3.09]
[1754613158444,3.25,173.79,173.77,3.09]
[1754613158644,5.7517,173.81,173.76,5.7532]
[1754613158845,3.25,173.83,173.77,3.09]
[1754613159242,5.7517,173.81,173.79,3.09]
[1754613159547,3.25,173.85,173.82,3.09]
[1754613159943,5.7508,173.84,173.82,3.09]
[1754613160140,3.25,173.85,173.82,3.09]
[1754613160437,4.85185991,173.9,173.8,4.85185991]
[1754613160642,3.25,173.91,173.83,3.09]
[1754613160945,3.25,173.89,173.83,3.09]
[1754613161649,3.25,173.93,173.85,3.09]
[1754613161841,4.85185991,173.96,173.87,8.8395]
[1754613162147,3.25,173.98,173.91,3.09]
[1754613162445,4.85185991,174.04,173.95,3.09]
[1754613162747,8.10185991,174.07,173.97,3.09]
[1754613162938,5.745,174.01,173.97,3.09]
[1754613163138,3.25,174.04,173.97,3.09]
[1754613164344,3.25,174.0,173.93,3.09]
[1754613164741,5.7466,173.96,173.91,5.748]
[1754613164948,3.25,174.0,173.94,3.09]
[1754613165345,0.03616321,173.95,173.94,3.09]
[1754613165641,4.85185991,173.99,173.92,5.7478]
[1754613165944,8.10185991,174.01,173.96,3.09]
[1754613166145,5.7459,173.99,173.97,3.09]
[1754613166341,3.25,174.0,173.97,3.09]
[1754613166650,5.7459,173.98,173.93,3.09]
[1754613166946,3.25,173.99,173.93,3.09]
[1754613167749,3.25,173.98,173.91,3.09]
[1754613167943,3.25,173.95,173.91,3.09]
[1754613168145,3.25,173.95,173.89,3.09]
[1754613168340,8.10185991,173.99,173.89,3.09]
[1754613168543,8.10185991,173.99,173.9,0.04034776]
[1754613168749,0.03648793,173.96,173.91,3.09]
[1754613169242,5.7469,173.95,173.9,0.04034776]
[1754613169441,3.28648793,173.96,173.93,3.09]
[1754613169641,3.25,173.95,173.9,0.04034776]
[1754613169842,3.25,173.95,173.91,3.09]
[1754613170042,3.25,173.95,173.92,3.09]
[1754613170248,5.7475,173.94,173.92,3.09]
[1754613170643,5.7475,173.94,173.93,3.09]
[1754613170851,5.747,173.95,173.9,0.04034776]
[1754613171151,0.03648793,173.96,173.91,3.09]
[1754613171545,0.03648793,173.96,173.92,3.09]
[1754613171745,0.03648793,173.96,173.91,3.09]
[1754613171942,0.03648793,173.96,173.92,3.09]
[1754613172145,3.25,173.94,173.91,3.09]
[1754613172347,3.25,173.92,173.9,0.04034776]
[1754613172650,5.7482,173.91,173.9,0.04034776]
[1754613173151,13.85005991,173.91,173.9,0.04034776]
[1754613173943,0.03756286,173.92,173.9,3.13034776]
[1754613174546,5.78576286,173.92,173.9,3.13034776]
[1754613175148,5.78576286,173.92,173.91,3.09]
[1754613175446,0.03756286,173.92,173.91,3.09]
[1754613175650,3.25,173.91,173.9,0.04034776]
[1754613175852,8.10185991,173.91,173.9,0.04034776]
[1754613176040,13.85005991,173.91,173.9,4.776e-05]
[1754613180448,3.25,173.9,173.82,3.09]
[1754613180645,0.03756286,173.92,173.82,3.09]
[1754613180646,3.25,173.84,173.82,3.09]
[1754613180951,5.7517,173.81,173.78,3.09]
[1754613181251,3.25,173.84,173.78,3.09]
[1754613181453,3.25,173.88,173.78,3.09]
[1754613181657,3.25,173.88,173.79,4.85185991]
[1754613181952,3.3395231,173.83,173.74,3.18]
[1754613182343,4.85185991,173.84,173.75,4.85185991]
[1754613182544,4.85185991,173.9,173.78,3.18]
[1754613182744,3.3,173.91,173.78,3.18]
[1754613182953,8.15185991,173.9,173.83,3.18]
[1754613183150,3.3,173.89,173.83,3.18]
[1754613183455,5.7498,173.87,173.83,3.18]
[1754613183657,8.15185991,173.92,173.83,3.18]
[1754613184156,3.3,173.91,173.83,3.18]
[1754613185155,5.7492,173.89,173.83,8.9308]
[1754613185357,5.7492,173.89,173.84,3.18]
[1754613185855,3.3,173.91,173.84,3.18]
[1754613185856,5.7493,173.88,173.84,3.18]
[1754613186353,5.7499,173.86,173.85,3.18]
[1754613186556,3.3,173.87,173.8,3.18]
[1754613186858,5.7505,173.85,173.8,8.9316]
[1754613187057,5.7505,173.85,173.81,3.18]
[1754613187452,4.85185991,173.88,173.79,4.85185991]
[1754613187652,3.3,173.89,173.82,3.18]
[1754613188055,151.43480406,173.96,173.84,5.7503]
[1754613188056,8.15185991,173.92,173.84,5.7503]
[1754613188359,0.04258053,173.87,173.83,3.18]
[1754613189160,0.04258053,173.87,173.82,4.85185991]
[1754613189357,0.04258053,173.87,173.85,3.18]
[1754613189860,0.04258053,173.87,173.83,3.18]
[1754613190056,0.04258053,173.87,173.81,3.18]
[1754613190249,0.04258053,173.87,173.83,3.18]
[1754613190559,8.15185991,173.92,173.85,3.18]
[1754613190858,0.03736471,173.87,173.86,3.18]
[1754613191257,3.3,173.9,173.83,3.18]
[1754613191560,0.04049935,173.88,173.83,3.18]
[1754613192559,0.04049935,173.88,173.84,5.7505]
[1754613192757,0.04049935,173.88,173.85,3.18]
[1754613192959,0.04049935,173.88,173.83,3.18]
[1754613193157,0.04049935,173.88,173.84,5.7506]
[1754613193455,0.04049935,173.88,173.85,3.18]
[1754613193759,0.04049935,173.88,173.85,8.9302]
[1754613193961,0.04049935,173.88,173.86,3.18]
[1754613194162,0.04049935,173.88,173.87,3.18]
[1754613194459,5.78979935,173.88,173.87,3.18]
[1754613195461,0.04049935,173.88,173.87,3.18]
[1754613197162,3.3,173.87,173.84,3.18]
[1754613197362,3.3,173.87,173.85,3.18]
[1754613197558,0.04049935,173.88,173.85,3.18]
[1754613197863,0.04049935,173.88,173.76,73.5065]
[1754613197864,0.04049935,173.88,173.87,3.18]
[1754613198054,129.2,174.03,173.87,3.18]
[1754613198055,3.3,173.97,173.87,3.18]
[1754613198258,3.3,173.99,173.92,3.18]
[1754613198458,8.15185991,173.99,173.92,3.18]
[1754613198660,3.3,173.95,173.87,4.85185991]
[1754613198862,3.3,173.98,173.88,3.18]
[1754613199162,3.3,173.93,173.91,3.18]
[1754613199361,3.3,173.93,173.91,3.21646424]
[1754613199558,4.85185991,173.97,173.91,0.03646424]
[1754613199761,4.85185991,173.97,173.92,3.18]
[1754613199961,3.3,173.95,173.92,3.18]
[1754613200161,5.7475,173.94,173.93,3.18]
[1754613201162,5.7477,173.93,173.91,0.03646424]
[1754613201464,5.7477,173.93,173.91,3.21646424]
[1754613201671,9.0477,173.93,173.91,3.21646424]
[1754613202069,5.7477,173.93,173.91,3.21646424]
[1754613202263,5.7474,173.94,173.91,0.03646424]
[1754613202468,3.3,173.97,173.94,3.18]
[1754613202667,3.3,173.96,173.94,3.18]
[1754613202969,3.3,173.95,173.92,3.18]
[1754613203367,3.3,173.95,173.93,3.18]
[1754613203768,3.3,173.98,173.96,3.18]
[1754613204067,3.3,173.98,173.93,3.18]
[1754613204268,3.3,173.99,173.91,3.18]
[1754613204471,3.3,174.0,173.97,3.18]
[1754613204669,3.3,174.0,173.98,3.18]